bitfinex/quotes_BTCUSD_20250313
["timestamp","ask_amount","ask_price","bid_price","bid_amount"]
[1741896536861,0.00600089,80536.0,80535.0,0.82974489]
[1741896537059,0.02545726,80536.0,80535.0,0.82974489]
[1741896539241,0.00600089,80536.0,80535.0,0.82974489]
[1741896539451,0.02545657,80536.0,80535.0,0.82974489]
[1741896540069,0.01945657,80536.0,80535.0,0.82974489]
[1741896540480,0.02545657,80536.0,80535.0,0.82974489]
[1741896540888,0.02545657,80536.0,80535.0,0.68062489]
[1741896541028,0.02545657,80536.0,80535.0,0.82974489]
[1741896541998,0.01945657,80536.0,80535.0,0.68062489]
[1741896542111,0.00500089,80536.0,80535.0,0.82974489]
[1741896542510,0.01945776,80536.0,80535.0,0.82974489]
[1741896542771,0.02445776,80536.0,80535.0,0.7100439]
[1741896543327,0.00500089,80536.0,80535.0,0.7100439]
[1741896547920,0.02445747,80536.0,80535.0,0.7100439]
[1741896551836,0.02445747,80536.0,80535.0,0.7100039]
[1741896553373,0.00500089,80536.0,80535.0,0.7100039]
[1741896556373,0.02445773,80536.0,80535.0,0.7100039]
[1741896556573,0.27279373,80536.0,80535.0,0.0001689]
[1741896556686,0.34859373,80536.0,80535.0,0.0001689]
[1741896556890,0.37377153,80536.0,80535.0,0.0001689]
[1741896557961,0.38618753,80536.0,80535.0,0.0001689]
[1741896558488,0.43588753,80536.0,80535.0,0.0001689]
[1741896558663,0.43088753,80536.0,80535.0,0.0001689]
[1741896558872,0.43588753,80536.0,80535.0,0.0001689]
[1741896559873,0.43757083,80536.0,80535.0,0.0001689]
[1741896560286,0.43257083,80536.0,80535.0,0.0001689]
[1741896560688,0.43757083,80536.0,80535.0,0.0001689]
[1741896561671,0.75211168,80536.0,80535.0,0.0001689]
[1741896562631,0.74711168,80536.0,80535.0,0.0001689]
[1741896562995,0.75211168,80536.0,80535.0,0.0001689]
[1741896563205,0.74711168,80536.0,80535.0,0.0001689]
[1741896563398,0.75211168,80536.0,80535.0,0.0001689]
[1741896563679,0.87207257,80536.0,80535.0,0.0001689]
[1741896565445,0.87207257,80536.0,80520.0,0.00027122]
[1741896565446,0.260801,80521.0,80520.0,0.00027122]
[1741896565626,0.683801,80521.0,80520.0,0.00027122]
[1741896565833,0.70664673,80521.0,80520.0,0.00027122]
[1741896566478,0.44497247,80521.0,80520.0,0.00027122]
[1741896566835,0.67881362,80521.0,80520.0,0.00027122]
[1741896567016,0.68381362,80521.0,80520.0,0.00027122]
[1741896567220,0.67881362,80521.0,80520.0,0.00027122]
[1741896567400,0.70379886,80521.0,80520.0,0.00027122]
[1741896567560,0.70879886,80521.0,80520.0,0.00027122]
[1741896567919,0.70379886,80521.0,80520.0,0.00027122]
[1741896568320,0.16129012,80521.0,80520.0,0.00027122]
[1741896568550,0.05275454,80521.0,80520.0,0.00027122]
[1741896569600,0.05275454,80521.0,80520.0,0.01269022]
[1741896570004,0.01946442,80521.0,80520.0,0.01269022]
[1741896570702,0.01946442,80521.0,80520.0,0.58271295]
[1741896570885,0.02446442,80521.0,80520.0,0.58147121]
[1741896572453,0.02946442,80521.0,80520.0,0.58147121]
[1741896572877,0.02946442,80521.0,80520.0,0.60004034]
[1741896573233,0.02446442,80521.0,80520.0,0.60004034]
[1741896573357,0.01946442,80521.0,80520.0,0.60004034]
[1741896573586,8.9e-07,80536.0,80535.0,0.012416]
[1741896573992,0.00823088,80536.0,80535.0,0.012416]
[1741896574197,8.9e-07,80536.0,80535.0,0.012416]
[1741896574399,0.00823088,80536.0,80535.0,0.012416]
[1741896574735,0.00823533,80536.0,80535.0,0.255755]
[1741896574939,8.9e-07,80536.0,80535.0,0.255755]
[1741896575138,0.00823533,80536.0,80535.0,0.255755]
[1741896575464,0.01323533,80536.0,80535.0,0.255755]
[1741896575798,0.00823533,80536.0,80535.0,0.255755]
[1741896576201,0.01323533,80536.0,80535.0,0.255755]
[1741896576409,0.00823533,80536.0,80535.0,0.255755]
[1741896576626,8.9e-07,80536.0,80535.0,0.255755]
[1741896577008,0.01945944,80536.0,80535.0,0.255755]
[1741896577419,0.0277015,80536.0,80535.0,0.255755]
[1741896577828,0.02445944,80536.0,80535.0,0.255755]
[1741896578164,0.01945944,80536.0,80535.0,0.255755]
[1741896578458,0.02445944,80536.0,80535.0,0.255755]
[1741896578813,0.02445944,80536.0,80535.0,0.27409435]
[1741896579018,0.02445944,80536.0,80535.0,0.69379534]
[1741896579719,0.03045944,80536.0,80535.0,0.69379534]
[1741896581155,0.01945944,80536.0,80535.0,0.69379534]
[1741896581325,0.01945944,80536.0,80535.0,0.84283534]
[1741896581474,0.02445944,80536.0,80535.0,0.84283534]
[1741896581875,0.02445944,80536.0,80535.0,1.04117619]
[1741896581876,4.4e-07,80536.0,80535.0,1.04117619]
[1741896582082,4e-08,80551.0,80550.0,0.3484]
[1741896582278,4e-08,80551.0,80550.0,0.64905584]
[1741896582564,4e-08,80551.0,80550.0,0.64405584]
[1741896582839,4e-08,80551.0,80550.0,0.77445584]
[1741896583067,4e-08,80551.0,80550.0,0.72445584]
[1741896583292,4e-08,80551.0,80550.0,0.77445584]
[1741896583492,4e-08,80551.0,80550.0,0.79958715]
[1741896583639,4e-08,80551.0,80550.0,0.79964947]
[1741896584344,4e-08,80551.0,80550.0,0.79764947]
[1741896586911,4e-08,80551.0,80550.0,0.99630818]
[1741896587185,4e-08,80551.0,80550.0,0.96163602]
[1741896587387,4e-08,80551.0,80550.0,0.75763602]
[1741896587683,4e-08,80551.0,80550.0,0.70293731]
[1741896589099,4e-08,80551.0,80550.0,0.65453731]
[1741896590380,0.01945077,80551.0,80550.0,0.65453731]
[1741896590960,7.7e-07,80551.0,80550.0,0.72407816]
[1741896591239,0.0003382,80572.0,80565.0,0.560658]
[1741896591556,0.0003382,80572.0,80565.0,0.82927899]
[1741896591892,0.0003382,80572.0,80565.0,0.91187899]
[1741896593138,0.0003382,80572.0,80565.0,0.9304983]
[1741896594907,0.0003382,80572.0,80565.0,0.9354983]
[1741896596144,0.0003382,80572.0,80565.0,1.0663983]
[1741896597388,0.0003382,80572.0,80565.0,0.9354983]
[1741896598707,0.0003382,80572.0,80565.0,0.9304983]
[1741896599809,0.0003382,80572.0,80565.0,0.8478983]
[1741896600244,0.0003382,80572.0,80565.0,0.82923899]
[1741896602574,0.0003382,80566.0,80565.0,0.83923899]
[1741896602964,0.0003382,80566.0,80565.0,0.53923899]
[1741896603510,0.1782265,80581.0,80576.0,0.248212]
[1741896603862,0.248203,80579.0,80575.0,0.01241]
[1741896604077,0.01241,80577.0,80565.0,0.01]
[1741896604279,0.005,80566.0,80565.0,0.01]
[1741896604484,0.248231,80570.0,80565.0,0.01]
[1741896604703,0.248231,80570.0,80565.0,0.01006232]
[1741896604913,0.248237,80569.0,80565.0,0.01006232]
[1741896605115,0.307455,80566.0,80565.0,0.01006232]
[1741896605519,0.30695208,80566.0,80565.0,0.01006232]
[1741896605870,0.30195208,80566.0,80565.0,0.01006232]
[1741896606661,0.38325208,80566.0,80565.0,0.01006232]
[1741896607937,0.38825208,80566.0,80565.0,0.01006232]
[1741896608335,0.41253865,80566.0,80565.0,0.01006232]
[1741896608980,0.08299565,80566.0,80565.0,0.01006232]
[1741896609964,0.01020024,80566.0,80565.0,0.01006232]
[1741896610170,0.02965361,80566.0,80565.0,0.01006232]
[1741896612028,0.06649412,80566.0,80565.0,0.01006232]
[1741896612275,0.14779412,80566.0,80565.0,0.01006232]
[1741896613079,0.19499412,80566.0,80565.0,0.01006232]
[1741896614303,0.4900816,80566.0,80565.0,0.01006232]
[1741896615972,0.4950816,80566.0,80565.0,0.01006232]
[1741896617481,0.51453656,80566.0,80565.0,0.01006232]
[1741896618086,0.51487436,80566.0,80565.0,0.01006232]
[1741896618255,0.50987436,80566.0,80565.0,0.01006232]
[1741896618707,0.51487436,80566.0,80565.0,0.01106232]
[1741896618918,0.50033351,80566.0,80565.0,0.01106232]
[1741896619126,0.05942151,80566.0,80565.0,0.01106232]
[1741896619327,0.07183351,80566.0,80565.0,0.01106232]
[1741896619767,0.05942151,80566.0,80565.0,0.01106232]
[1741896623703,0.03996655,80566.0,80565.0,0.01106232]
[1741896624136,0.05237855,80566.0,80565.0,0.01106232]
[1741896625722,0.35237855,80566.0,80565.0,0.01106232]
[1741896626761,0.37183312,80566.0,80565.0,0.01106232]
[1741896629562,0.37183312,80566.0,80565.0,0.01123122]
[1741896629970,0.35942112,80566.0,80565.0,0.01123122]
[1741896630416,0.37183312,80566.0,80565.0,0.01123122]
[1741896632627,0.76700457,80566.0,80565.0,0.01123122]
[1741896634867,0.98280631,80566.0,80565.0,2.2e-07]
[1741896635074,0.312414,80551.0,80550.0,0.0001689]
[1741896635241,0.248353,80531.0,80525.0,0.248369]
[1741896635445,0.24837,80525.0,80521.0,4.277e-05]
[1741896635649,0.248378,80523.0,80521.0,4.277e-05]
[1741896635876,0.00544217,80522.0,80521.0,0.01246177]
[1741896636075,0.00544217,80522.0,80521.0,0.26084377]
[1741896636298,0.3,80539.0,80530.0,0.260769]
[1741896638973,0.00544217,80530.0,80526.0,0.260782]
[1741896639396,0.02490253,80530.0,80527.0,0.26078]
[1741896639762,0.02490253,80530.0,80529.0,0.248357]
[1741896640371,0.02490253,80530.0,80529.0,0.243357]
[1741896640807,0.02490253,80530.0,80528.0,0.012418]
[1741896640988,0.02490253,80530.0,80527.0,0.26078]
[1741896641585,0.02990253,80530.0,80527.0,0.26078]
[1741896641777,0.02990253,80530.0,80525.0,0.012418]
[1741896641778,0.27325953,80530.0,80525.0,0.012418]
[1741896641979,0.248361,80528.0,80521.0,0.01246177]
[1741896642384,0.00540758,80527.0,80521.0,0.01246177]
[1741896644263,0.01040758,80527.0,80521.0,0.01246177]
[1741896646455,0.02986814,80527.0,80523.0,0.248375]
[1741896647383,0.194234,80530.0,80523.0,0.248375]
[1741896647707,0.26558635,80526.0,80521.0,4.277e-05]
[1741896648014,0.24837,80526.0,80521.0,4.277e-05]
[1741896648224,0.24837,80526.0,80521.0,0.26084377]
[1741896648408,0.25317035,80525.0,80521.0,4.277e-05]
[1741896648760,0.012418,80522.0,80521.0,4.277e-05]
[1741896649157,0.3172125,80522.0,80521.0,4.277e-05]
[1741896650776,0.60051424,80522.0,80521.0,4.277e-05]
[1741896651177,0.48055335,80522.0,80521.0,4.277e-05]
[1741896651393,0.4660125,80522.0,80521.0,4.277e-05]
[1741896651606,0.4710125,80522.0,80521.0,4.277e-05]
[1741896652217,0.4760125,80522.0,80521.0,4.277e-05]
[1741896653025,0.4660125,80522.0,80521.0,4.277e-05]
[1741896653426,0.4710125,80522.0,80521.0,4.277e-05]
[1741896654526,0.3222125,80522.0,80521.0,4.277e-05]
[1741896654745,0.0047945,80522.0,80521.0,0.26084377]
[1741896654917,0.00606689,80522.0,80521.0,0.26084377]
[1741896655116,0.005,80522.0,80521.0,4.277e-05]
[1741896655863,0.00530853,80522.0,80521.0,4.277e-05]
[1741896655998,0.00530853,80522.0,80521.0,0.00021177]
[1741896655999,0.012418,80522.0,80521.0,0.00021177]
[1741896656218,0.02272653,80522.0,80521.0,0.00021177]
[1741896657689,0.04219062,80522.0,80521.0,0.00021177]
[1741896658025,0.02977262,80522.0,80521.0,0.00021177]
[1741896658380,0.02977262,80522.0,80521.0,0.24859377]
[1741896658700,0.02977262,80522.0,80521.0,0.00021177]
[1741896658937,0.02977262,80522.0,80521.0,0.01263077]
[1741896659126,0.02977262,80522.0,80521.0,0.00021177]
[1741896659660,0.27815162,80522.0,80521.0,0.00021177]
[1741896659871,0.29056962,80522.0,80521.0,0.00021177]
[1741896660080,0.27815162,80522.0,80521.0,0.00021177]
[1741896660737,0.02977262,80522.0,80521.0,0.00021177]
[1741896662266,0.01030853,80522.0,80521.0,0.01263077]
[1741896662494,0.005,80522.0,80521.0,0.00021177]
[1741896663231,0.25868753,80522.0,80521.0,0.00021177]
[1741896663444,0.01030853,80522.0,80521.0,0.00021177]
[1741896665045,0.02272653,80522.0,80521.0,0.00021177]
[1741896665432,0.01030853,80522.0,80521.0,0.00021177]
[1741896666977,0.02977267,80522.0,80521.0,0.00021177]
[1741896667537,0.04219067,80522.0,80521.0,0.00021177]
[1741896668564,0.34219067,80522.0,80521.0,0.00021177]
[1741896668784,0.47669241,80522.0,80521.0,0.00021177]
[1741896671160,0.35173152,80522.0,80521.0,0.00021177]
[1741896671347,0.35673152,80522.0,80521.0,0.00021177]
[1741896672384,0.32977267,80522.0,80521.0,0.00021177]
[1741896672580,0.02977267,80522.0,80521.0,0.00021177]
[1741896672939,0.01030853,80522.0,80521.0,0.00021177]
[1741896673712,0.01030853,80522.0,80521.0,0.24859377]
[1741896673955,0.01030853,80522.0,80521.0,0.26101277]
[1741896674122,0.005,80522.0,80521.0,0.26101277]
[1741896674535,0.00473496,80522.0,80521.0,0.26101277]
[1741896675053,0.24836,80529.0,80521.0,0.26101277]
[1741896675382,0.005,80522.0,80521.0,0.26101277]
[1741896675925,0.00973496,80522.0,80521.0,0.00021177]
[1741896676134,0.02919834,80522.0,80521.0,0.00021177]
[1741896676660,0.04161634,80522.0,80521.0,0.00021177]
[1741896677065,0.03661634,80522.0,80521.0,0.00021177]
[1741896678066,0.04161634,80522.0,80521.0,0.00021177]
[1741896678292,0.49033634,80522.0,80521.0,0.00021177]
[1741896678540,0.67363808,80522.0,80521.0,0.00021177]
[1741896678743,0.55367719,80522.0,80521.0,0.00021177]
[1741896678948,0.21678135,80522.0,80521.0,0.00021177]
[1741896679435,0.22919935,80522.0,80521.0,0.00021177]
[1741896681156,0.23419935,80522.0,80521.0,0.00021177]
[1741896681947,0.23419935,80522.0,80520.0,9e-07]
[1741896681948,1.15774185,80521.0,80520.0,9e-07]
[1741896682153,1.20774185,80521.0,80520.0,9e-07]
[1741896682965,0.260863,80502.0,80501.0,4e-05]
[1741896683786,0.28033323,80502.0,80501.0,4e-05]
[1741896684857,0.28533323,80502.0,80501.0,4e-05]
[1741896686560,0.29030989,80502.0,80501.0,4e-05]
[1741896686969,0.27083966,80502.0,80501.0,4e-05]
[1741896687139,0.27998856,80502.0,80501.0,4e-05]
[1741896688045,0.30541497,80502.0,80501.0,4e-05]
[1741896688795,0.29299297,80502.0,80501.0,4e-05]
[1741896689873,0.31246233,80502.0,80501.0,4e-05]
[1741896690749,0.30331343,80502.0,80501.0,4e-05]
[1741896691250,0.31573543,80502.0,80501.0,4e-05]
[1741896691449,0.31573543,80502.0,80501.0,0.000209]
[1741896692500,0.30331343,80502.0,80501.0,0.000209]
[1741896693575,0.05487243,80502.0,80501.0,0.000209]
[1741896693731,0.02944602,80502.0,80501.0,0.000209]
[1741896694218,0.00997666,80502.0,80501.0,0.000209]
[1741896695243,0.005,80502.0,80501.0,0.385475]
[1741896696576,6.731e-05,80522.0,80501.0,0.385475]
[1741896696577,6.731e-05,80522.0,80520.0,0.327485]
[1741896696781,0.02522326,80521.0,80520.0,0.322485]
[1741896696981,0.03086503,80521.0,80520.0,0.322485]
[1741896697159,0.02522326,80521.0,80520.0,0.322485]
[1741896697362,0.04468758,80521.0,80520.0,0.322485]
[1741896697654,0.05032935,80521.0,80520.0,0.334904]
[1741896697879,0.00523878,80521.0,80520.0,0.334904]
[1741896698085,0.08744239,80525.0,80520.0,0.334904]
[1741896698288,0.25361478,80524.0,80520.0,0.07922454]
[1741896698494,0.25361478,80524.0,80520.0,0.07422454]
[1741896699127,0.25361478,80524.0,80520.0,0.07522454]
[1741896699128,0.005,80521.0,80520.0,0.07522454]
[1741896699323,0.248378,80523.0,80520.0,0.07422454]
[1741896699686,0.00523878,80522.0,80520.0,0.07522454]
[1741896700004,0.00523878,80522.0,80520.0,0.07422454]
[1741896700181,0.005,80521.0,80520.0,0.07522454]
[1741896700817,0.01028475,80521.0,80520.0,0.07522454]
[1741896701338,0.02974893,80521.0,80520.0,0.07522454]
[1741896701539,0.02474893,80521.0,80520.0,0.07422454]
[1741896702175,0.04964186,80521.0,80520.0,0.07422454]
[1741896703401,0.04997986,80521.0,80520.0,0.07422454]
[1741896704430,0.03051568,80521.0,80520.0,0.08664354]
[1741896704773,0.02523093,80521.0,80520.0,0.08664354]
[1741896704973,0.03051568,80521.0,80520.0,0.08664354]
[1741896705410,0.03051568,80521.0,80520.0,0.07422454]
[1741896707252,0.03051568,80521.0,80520.0,0.08664354]
[1741896707453,0.04997977,80521.0,80520.0,0.08664354]
[1741896707803,0.02508684,80521.0,80520.0,0.13604354]
[1741896708242,0.00562275,80521.0,80520.0,0.13604354]
[1741896708418,0.02508594,80521.0,80520.0,0.13604354]
[1741896709232,0.03008594,80521.0,80520.0,0.13604354]
[1741896711279,0.42998594,80521.0,80520.0,0.13604354]
[1741896712715,0.42498594,80521.0,80520.0,0.13604354]
[1741896713022,0.42998594,80521.0,80520.0,0.13604354]
[1741896713616,0.41052275,80521.0,80520.0,0.13604354]
[1741896713796,0.41052275,80521.0,80520.0,0.28464354]
[1741896713965,0.19469009,80521.0,80520.0,0.40434453]
[1741896714170,0.200432,80521.0,80520.0,0.70434453]
[1741896714370,0.19469009,80521.0,80520.0,0.70434453]
[1741896714613,0.000338,80527.0,80520.0,0.70434453]
[1741896714614,9e-08,80527.0,80526.0,0.012418]
[1741896714827,9e-08,80527.0,80526.0,0.81032643]
[1741896715024,9e-08,80527.0,80526.0,0.80908499]
[1741896715184,9e-08,80527.0,80526.0,0.82362584]
[1741896715725,9e-08,80527.0,80526.0,0.87362584]
[1741896716043,9e-08,80527.0,80526.0,0.82362584]
[1741896716243,0.01630426,80558.0,80557.0,0.012413]
[1741896716419,0.248246,80565.0,80559.0,0.007413]
[1741896717099,0.248246,80565.0,80559.0,0.255675]
[1741896717413,0.248246,80565.0,80559.0,0.25579954]
[1741896717580,0.248246,80565.0,80560.0,0.012413]
[1741896717986,0.0003378,80566.0,80560.0,0.012413]
[1741896718167,0.58896,80561.0,80560.0,0.012413]
[1741896718568,0.60551912,80561.0,80560.0,0.012413]
[1741896718760,0.60551912,80561.0,80559.0,0.00012454]
[1741896720403,0.58896,80561.0,80560.0,0.260675]
[1741896720597,0.58896,80561.0,80560.0,0.248262]
[1741896720811,0.58896,80561.0,80559.0,0.00012454]
[1741896721730,0.0059385,80560.0,80559.0,0.00012454]
[1741896722133,0.0059385,80560.0,80559.0,0.01253754]
[1741896723933,0.01637011,80563.0,80560.0,0.260675]
[1741896724251,0.2485838,80566.0,80560.0,0.260675]
[1741896724755,0.2485838,80566.0,80561.0,0.260668]
[1741896725423,0.248248,80565.0,80560.0,0.012413]
[1741896725798,0.248248,80565.0,80560.0,0.260674]
[1741896726405,0.0003378,80566.0,80560.0,0.260674]
[1741896727259,0.0003378,80566.0,80559.0,0.01253754]
[1741896727260,0.248248,80565.0,80559.0,0.01253754]
[1741896727463,0.0003378,80566.0,80559.0,0.01287534]
[1741896727672,0.248252,80564.0,80559.0,0.00046234]
[1741896728043,0.01651968,80564.0,80559.0,0.00046234]
[1741896728251,0.0003378,80566.0,80563.0,0.012412]
[1741896728670,0.0003378,80566.0,80565.0,0.012412]
[1741896729084,0.0003378,80566.0,80565.0,0.087812]
[1741896729814,0.0003378,80566.0,80565.0,0.136112]
[1741896729966,0.0003378,80566.0,80565.0,0.13735308]
[1741896730171,0.0003378,80566.0,80565.0,0.25705407]
[1741896730400,0.0003378,80566.0,80565.0,0.25581299]
[1741896734337,0.0003378,80566.0,80565.0,0.55581299]
[1741896736083,6e-07,80567.0,80566.0,0.560655]
[1741896736293,6e-07,80567.0,80566.0,0.80455599]
[1741896739965,6e-07,80567.0,80566.0,0.833215]
[1741896742240,6e-07,80567.0,80566.0,0.80455599]
[1741896742411,6e-07,80567.0,80566.0,0.95291599]
[1741896744028,6e-07,80567.0,80566.0,0.833215]
[1741896747830,6e-07,80567.0,80566.0,0.709015]
[1741896750141,0.248187,80585.0,80578.0,0.01241]
[1741896750142,0.23155504,80585.0,80578.0,0.01241]
[1741896750302,0.0003382,80586.0,80584.0,0.248186]
[1741896750667,0.01603462,80586.0,80580.0,0.01241]
[1741896750950,0.0003382,80586.0,80580.0,0.01241]
[1741896751127,0.0003382,80586.0,80583.0,0.012409]
[1741896751445,0.0003382,80586.0,80584.0,0.248188]
[1741896751650,0.00038,80586.0,80583.0,0.260599]
[1741896751853,0.00038,80586.0,80584.0,0.260594]
[1741896752183,0.00038,80586.0,80585.0,0.012409]
[1741896753623,0.248185,80585.0,80579.0,0.260611]
[1741896753845,0.24819,80584.0,80579.0,0.248202]
[1741896754028,0.24819,80584.0,80579.0,0.260612]
[1741896754783,0.24819,80584.0,80579.0,0.01241]
[1741896755061,0.24819,80584.0,80579.0,0.260611]
[1741896755226,0.01620541,80586.0,80581.0,0.248195]
[1741896755426,0.01620541,80586.0,80582.0,0.248192]
[1741896755580,0.01620541,80586.0,80583.0,0.248189]
[1741896755998,0.01620541,80586.0,80582.0,0.260601]
[1741896756783,0.01620541,80586.0,80583.0,0.260598]
[1741896757201,0.01620541,80586.0,80584.0,0.248186]
[1741896757422,0.01620541,80586.0,80584.0,0.260595]
[1741896757623,0.00038,80586.0,80585.0,0.012409]
[1741896759614,0.00438,80586.0,80585.0,0.012409]
[1741896761054,0.00438,80586.0,80580.0,0.260607]
[1741896761055,0.252562,80586.0,80580.0,0.260607]
[1741896761256,0.00507579,80585.0,80582.0,0.260602]
[1741896761452,0.00507579,80585.0,80583.0,0.012409]
[1741896761659,0.00507579,80585.0,80584.0,0.012409]
[1741896761917,0.00438,80586.0,80585.0,0.260594]
[1741896762054,0.00038,80586.0,80585.0,0.260594]
[1741896763139,0.00438,80586.0,80585.0,0.260594]
[1741896768290,0.00438,80586.0,80583.0,0.248189]
[1741896768450,0.00438,80586.0,80585.0,0.012409]
[1741896770022,0.00438,80586.0,80585.0,0.091309]
[1741896770196,0.00438,80586.0,80585.0,0.13924983]
[1741896770572,0.00438,80586.0,80585.0,0.138009]
[1741896770762,0.00438,80586.0,80585.0,0.2589507]
[1741896770883,0.00438,80586.0,80585.0,0.25770999]
[1741896771860,0.00038,80586.0,80585.0,0.25770999]
[1741896772076,0.00038,80586.0,80585.0,0.091309]
[1741896772285,0.00038,80586.0,80585.0,0.012409]
[1741896774555,0.00038,80586.0,80585.0,0.0127468]
[1741896779555,0.00038,80586.0,80585.0,0.02829076]
[1741896780861,0.00038,80586.0,80585.0,0.10773152]
[1741896781279,0.00038,80586.0,80585.0,0.10649076]
[1741896782254,0.00038,80586.0,80585.0,0.10773146]
[1741896782664,0.00038,80586.0,80585.0,0.0127468]
[1741896782866,0.00038,80586.0,80585.0,0.0003378]
[1741896783070,0.00038,80586.0,80585.0,0.0127468]
[1741896785406,0.00438,80586.0,80585.0,0.0127468]
[1741896785601,0.00038,80586.0,80585.0,0.0003378]
[1741896786006,0.02185488,80586.0,80585.0,0.0003378]
[1741896786253,0.10485488,80586.0,80585.0,0.0003378]
[1741896786851,0.10085488,80586.0,80585.0,0.0003378]
[1741896788203,0.10485488,80586.0,80585.0,0.0003378]
[1741896788647,0.10085488,80586.0,80585.0,0.0003378]
[1741896789086,0.08844588,80586.0,80585.0,0.0003378]
[1741896789453,0.09244588,80586.0,80585.0,0.0003378]
[1741896791526,0.09244588,80586.0,80585.0,0.2609318]
[1741896791527,0.00944588,80586.0,80585.0,0.2609318]
[1741896791728,0.00438,80586.0,80585.0,0.2609318]
[1741896792311,0.00038,80586.0,80585.0,0.2609318]
[1741896792629,0.00338,80586.0,80585.0,0.2609318]
[1741896792916,0.00038,80586.0,80585.0,0.2609318]
[1741896793117,0.00338,80586.0,80585.0,0.2609318]
[1741896794239,0.50338,80586.0,80585.0,0.2609318]
[1741896794562,0.50842867,80586.0,80585.0,0.2609318]
[1741896795188,0.50542867,80586.0,80585.0,0.2609318]
[1741896795782,0.50942867,80586.0,80585.0,0.2609318]
[1741896795986,0.50542867,80586.0,80585.0,0.2609318]
[1741896796431,0.52855831,80586.0,80585.0,0.2609318]
[1741896797247,0.77674031,80586.0,80585.0,0.0003378]
[1741896797873,0.78914931,80586.0,80585.0,0.0003378]
[1741896802166,0.78514931,80586.0,80585.0,0.0003378]
[1741896802445,0.78814931,80586.0,80585.0,0.0003378]
[1741896804098,0.81352416,80586.0,80585.0,0.0003378]
[1741896805411,0.81352416,80586.0,80585.0,0.0103378]
[1741896809793,0.55293316,80586.0,80585.0,0.0103378]
[1741896810018,0.52755831,80586.0,80585.0,0.0227468]
[1741896811623,0.26728115,80586.0,80585.0,0.0227468]
[1741896812703,1.0160044,80593.0,80588.0,0.248175]
[1741896813174,1.0160044,80593.0,80587.0,0.012408]
[1741896813175,0.7678414,80593.0,80592.0,0.012408]
[1741896813696,0.7678414,80593.0,80592.0,0.009408]
[1741896814165,0.7708414,80593.0,80592.0,0.009408]
[1741896814484,0.78696299,80593.0,80592.0,0.009408]
[1741896814685,0.78996299,80593.0,80592.0,0.009408]
[1741896814886,0.78996299,80593.0,80587.0,0.260585]
[1741896815095,0.248172,80590.0,80585.0,0.0103378]
[1741896815310,0.012409,80586.0,80585.0,0.0103378]
[1741896816421,0.012409,80586.0,80585.0,0.0103378]
[1741896817317,0.015409,80586.0,80585.0,0.0103378]
[1741896818488,0.003,80586.0,80585.0,0.0227468]
[1741896820364,0.55321722,80593.0,80588.0,0.012408]
[1741896820730,0.00657105,80592.0,80589.0,0.012408]
[1741896821447,0.00657105,80592.0,80589.0,0.25858]
[1741896822714,0.00657105,80592.0,80590.0,0.260575]
[1741896823146,0.00857105,80592.0,80590.0,0.260575]
[1741896823486,0.00857105,80592.0,80590.0,0.012408]
[1741896823693,0.00857105,80592.0,80590.0,0.260575]
[1741896823976,0.00657105,80592.0,80590.0,0.260575]
[1741896824388,0.00857105,80592.0,80590.0,0.260575]
[1741896825820,0.00857105,80592.0,80589.0,0.25858]
[1741896826796,0.012408,80591.0,80585.0,0.0103378]
[1741896826950,0.24818,80587.0,80585.0,0.0103378]
[1741896827353,0.00658049,80586.0,80585.0,0.0103378]
[1741896828787,0.260587,80589.0,80585.0,0.0103378]
[1741896829182,0.248181,80587.0,80585.0,0.0103378]
[1741896829398,0.25475849,80588.0,80585.0,0.0103378]
[1741896829601,0.248178,80588.0,80585.0,0.0103378]
[1741896829807,0.00658049,80587.0,80585.0,0.0103378]
[1741896830568,0.002,80586.0,80585.0,0.0103378]
[1741896831169,0.00658049,80586.0,80585.0,0.0103378]
[1741896831371,0.248178,80588.0,80585.0,0.0103378]
[1741896831576,0.00658049,80586.0,80585.0,0.0103378]
[1741896833133,0.00858049,80586.0,80585.0,0.0103378]
[1741896833493,0.00858637,80586.0,80585.0,0.0103378]
[1741896835336,0.00858637,80586.0,80585.0,0.0227468]
[1741896835740,0.00858637,80586.0,80585.0,0.1005468]
[1741896835939,0.002,80586.0,80585.0,0.1005468]
[1741896836350,0.0001689,80592.0,80591.0,0.012408]
[1741896836615,0.0001689,80592.0,80591.0,0.260574]
[1741896836822,0.0067492,80592.0,80591.0,0.258574]
[1741896837150,0.0067492,80592.0,80591.0,0.256574]
[1741896837151,0.0001689,80592.0,80591.0,0.256574]
[1741896838014,0.0067492,80592.0,80591.0,0.256574]
[1741896838560,0.0087492,80592.0,80591.0,0.256574]
[1741896838765,0.248146,80598.0,80594.0,0.248157]
[1741896838982,3.8862,80721.0,80594.0,0.248157]
[1741896838983,0.37021027,80620.0,80594.0,0.248157]
[1741896839202,0.2484772,80600.0,80594.0,0.260564]
[1741896839553,0.0003382,80600.0,80595.0,0.260559]
[1741896839775,0.248142,80599.0,80592.0,0.260569]
[1741896840114,0.002,80598.0,80592.0,0.260569]
[1741896840308,0.027218,80598.0,80592.0,0.260569]
[1741896840533,0.027218,80598.0,80593.0,0.260566]
[1741896840735,0.024218,80598.0,80593.0,0.260566]
[1741896841142,0.272364,80598.0,80592.0,0.260569]
[1741896841343,0.274364,80598.0,80592.0,0.260569]
[1741896841851,0.276364,80598.0,80592.0,0.260569]
[1741896842419,0.24815,80597.0,80592.0,0.012408]
[1741896843177,0.276364,80598.0,80592.0,0.260569]
[1741896843874,0.24815,80597.0,80591.0,0.256574]
[1741896844097,0.24815,80597.0,80591.0,0.248166]
[1741896844283,0.04439403,80598.0,80595.0,0.260558]
[1741896844479,0.001,80598.0,80597.0,0.094207]
[1741896844682,0.001,80598.0,80597.0,0.141207]
[1741896845009,0.0003382,80600.0,80599.0,0.012407]
[1741896845192,0.0003382,80600.0,80599.0,0.011407]
[1741896846033,0.0003382,80600.0,80592.0,0.260568]
[1741896846034,0.2608862,80600.0,80592.0,0.260568]
[1741896846208,0.00745166,80599.0,80595.0,0.26056]
[1741896846393,0.0001688,80598.0,80596.0,0.248148]
[1741896846593,0.00751233,80597.0,80596.0,0.260555]
[1741896848343,0.00851233,80597.0,80596.0,0.260555]
[1741896850756,0.00851233,80597.0,80592.0,0.0003376]
[1741896850757,0.260568,80593.0,80592.0,0.0003376]
[1741896851196,0.34576768,80593.0,80592.0,0.0003376]
[1741896851758,0.39423843,80593.0,80592.0,0.0003376]
[1741896852231,0.30199758,80593.0,80592.0,0.0003376]
[1741896853479,0.30299758,80593.0,80592.0,0.0003376]
[1741896854025,0.30399758,80593.0,80592.0,0.0003376]
[1741896854963,0.30199758,80593.0,80592.0,0.0003376]